{"text_format":"1","workbook":"xlsx","n_sheets":3,"sheets":["Formato","Instructivo de Diligenciamiento","Listas"],"not_rendered":{"charts":0,"images":3,"macros":1,"external_links":0,"defined_names":3,"comments":0,"pivot_tables":0},"unopened":[],"bounds":{"document_bytes":16777216,"sheet_cells":100000,"rows_first":2000,"rows_last":500,"rows_between":2000,"halvings":0,"cell_chars":16384,"cell_head_chars":4096},"cells_cut":0,"cells_raw":0,"read":"whole","date_system":"1900"}

{"sheet":"Formato","index":0,"n_rows":71,"n_cols":17,"rows_kept":71,"cut":false,"hidden":false,"merged":[[49,2,49,3],[49,8,49,9],[49,10,49,11],[49,16,49,17],[53,2,53,3],[53,8,53,9],[53,10,53,11],[53,16,53,17],[57,2,57,3],[57,8,57,9],[57,10,57,11],[57,16,57,17],[56,2,56,3],[56,8,56,9],[56,10,56,11],[56,16,56,17],[54,2,54,3],[54,8,54,9],[54,10,54,11],[54,16,54,17],[55,2,55,3],[55,8,55,9],[55,10,55,11],[55,16,55,17],[52,2,52,3],[52,8,52,9],[52,10,52,11],[52,16,52,17],[50,2,50,3],[50,8,50,9],[50,10,50,11],[50,16,50,17],[51,2,51,3],[51,8,51,9],[51,10,51,11],[51,16,51,17],[48,2,48,3],[48,8,48,9],[48,10,48,11],[48,16,48,17],[46,2,46,3],[46,8,46,9],[46,10,46,11],[46,16,46,17],[47,2,47,3],[47,8,47,9],[47,10,47,11],[47,16,47,17],[45,10,45,11],[45,16,45,17],[42,2,42,3],[42,8,42,9],[42,10,42,11],[42,16,42,17],[43,2,43,3],[43,8,43,9],[43,10,43,11],[43,16,43,17],[70,0,71,0],[70,1,71,2],[39,16,39,17],[68,6,68,8],[67,1,67,3],[62,1,62,3],[65,1,65,3],[65,6,65,8],[67,6,67,8],[40,2,40,3],[40,8,40,9],[40,10,40,11],[40,16,40,17],[41,2,41,3],[41,8,41,9],[41,10,41,11],[41,16,41,17],[39,10,39,11],[44,2,44,3],[44,8,44,9],[44,10,44,11],[44,16,44,17],[45,2,45,3],[45,8,45,9],[70,13,71,14],[17,1,17,13],[68,4,68,5],[64,10,65,12],[66,10,67,12],[68,10,69,12],[70,10,71,12],[64,13,65,14],[66,13,67,14],[68,13,69,14],[39,2,39,3],[39,8,39,9],[29,11,29,13],[68,1,68,3],[37,1,37,9],[29,1,29,2],[29,4,29,5],[29,9,29,10],[31,1,31,2],[31,4,31,5],[31,9,31,10],[31,6,31,8],[27,9,27,10],[37,10,37,17],[38,16,38,17],[27,11,27,13],[29,6,29,8],[15,3,15,7],[21,1,21,13],[7,3,7,9],[9,1,9,2],[9,3,9,7],[7,12,7,13],[23,1,23,2],[23,4,23,8],[19,1,19,13],[27,1,27,2],[27,4,27,5],[27,6,27,8],[31,11,31,13],[35,0,35,17],[37,0,38,0],[38,8,38,9],[38,2,38,3],[38,10,38,11],[1,1,1,13],[7,1,7,2],[11,1,11,2],[23,9,23,13],[25,1,25,2],[25,4,25,5],[25,6,25,8],[25,9,25,10],[25,11,25,13],[11,3,11,9],[9,10,9,11],[9,12,9,13],[2,1,2,13],[13,1,13,13],[15,1,15,2],[4,1,5,3],[4,10,5,11],[4,7,5,9],[4,4,5,5]]}
[]
[null,"FORMATO PARA MODIFICACIÓN DE ÓRDENES DE COMPRA"]
[null,"Tienda Virtual del Estado Colombiano"]
[]
[null,"Número de Orden de Compra a modificar:",null,null,4737,null,null,"Número de modificación de la Orden de Compra:",null,null,3]
[]
[]
[null,"Entidad Compradora:",null,"Agencia Colombiana para la Reintegración de Personas y Grupos Alzados en Armas",null,null,null,null,null,null,null,"NIT:","900477169-8"]
[]
[null,"Nombre del solicitante:",null,"Brayan Gabriel Plazas Riaño",null,null,null,null,null,null,"Teléfono de contacto:",null,"5932211 Ext 320"]
[]
[null,"Proveedor :",null,"UNE"]
[]
[null,"Tipo "]
[]
[null,"Tipo",null,"Modificación de la Orden de Compra"]
[]
[null,"Justificación de la modificación o de las acciones a realizar"]
[]
[null,"Se requiere reducir la orden de compra para el año 2016 por un valor de $303.097.062,80 teniendo en cuenta los servicios efectivamente prestados por el contratista y adicionar el valor de $277.546.554 correspondientes a la vigencia 2017. Los servicios que se requiere dar continuidad son el servidor hyper grande, la ampliación de memoria de los servidores y el balanceador de cargas que actualmente vienen prestando servicio a la entidad hasta que finalice el acuerdo marco de precio, el 17 de septiembre de 2017."]
[]
[null,"Modificación información general"]
[]
[null,"Nombre del campo",null,"¿Requiere modificación Si/No?","Datos actuales",null,null,null,null,"Nuevos datos"]
[]
[null,"Actualizar supervisor",null,"NO","Nombre del supervisor actual",null,null,null,null,"Nombre nuevo supervisor"]
[]
[null,"Fecha de vencimiento",null,"NO","Fecha vencimiento actual",null,null,null,null,"Nueva fecha de vencimiento"]
[]
[null,"Dirección y/o teléfono",null,"NO","Dirección / teléfono actual",null,null,null,null,"Nueva dirección / teléfono"]
[]
[null,"Gravámenes adicionales",null,"NO","Gravamen(es) actual",null,null,null,null,"Nuevo(s) gravamen(es)"]
[]
[]
[]
["Modificación de artículos y servicios"]
[]
["Tipo de modificación","Información actual",null,null,null,null,null,null,null,null,"Nueva información"]
[null,"Número de la línea según O.C.","Nombre del artículo",null,"Cantidad","Unidad de medida","Precio unitario","Total","Información presupuestal",null,"Nombre del artículo",null,"Cantidad","Unidad de medida","Precio unitario","Total","Información presupuestal"]
["Modificación de artículo o servicio",1,"4.7-Database_Firewall_Mediana_Capacidad-Hosting_físico-Oro-Tipo 1 - 1 Und",null,19,"Mes",3190000,{"$f":"E40*G40","v":60610000},17315,null,{"$f":"C40","v":"4.7-Database_Firewall_Mediana_Capacidad-Hosting_físico-Oro-Tipo 1 - 1 Und"},null,10,"Mes",3190000,{"$f":"M40*O40","v":31900000},7016]
["Modificación de artículo o servicio",3,"4.5-Firewall_de_Red_Dedicado_Alta_Capacidad-Hosting_físico-Oro-Tipo 1 - 2 Und",null,19,"Mes",2280156,43322964,17315,null,"4.5-Firewall_de_Red_Dedicado_Alta_Capacidad-Hosting_físico-Oro-Tipo 1 - 2 Und",null,13,"Mes",696000,9048000,7016]
["Modificación de artículo o servicio",4,"4.10-Web_Application_Firewall_Mediana_Capacidad-Hosting_físico-Oro-Tipo 1 - 1 Und",null,19,"Mes",2021880,{"$f":"E42*G42","v":38415720},17315,null,{"$f":"C42","v":"4.10-Web_Application_Firewall_Mediana_Capacidad-Hosting_físico-Oro-Tipo 1 - 1 Und"},null,14.5,"Mes",2021880,{"$f":"M42*O42","v":29317260},7016]
["Modificación de artículo o servicio",5,"4.13-IPS_IDS_Dedicado_Mediana_Capacidad-Hosting_físico-Oro-Tipo 1 - 1 Und",null,21,"Mes",934994,19634874,17315,null,"4.13-IPS_IDS_Dedicado_Mediana_Capacidad-Hosting_físico-Oro-Tipo 1 - 1 Und",null,16,"Mes",934994,14959904,7016]
["Modificación de artículo o servicio",6,"5.000-Proxy_y_filtrado_de_contenido_web_alta_capacidad-Hosting_físico-Oro-Tipo 2 - 1 Und",null,19,"Mes",7598515,144371785,null,null,"5.000-Proxy_y_filtrado_de_contenido_web_alta_capacidad-Hosting_físico-Oro-Tipo 2 - 1 Und",null,14,"Mes",7598515,106379210]
["Modificación de artículo o servicio",8,"7.0-Collocation--Oro-Tipo 2 - 3 Und",null,21,"Mes",14449656,303442776,null,null,"7.0-Collocation--Oro-Tipo 2 - 3 Und",null,20.5,"Mes",14449656,296217948]
["Modificación de artículo o servicio",9,"1.6-Housing_1_RACK_8KVA_de_energía_45U-Housing-Plata-Tipo 2 - 1 Und",null,21,"Mes",6960000,146160000,null,null,"1.6-Housing_1_RACK_8KVA_de_energía_45U-Housing-Plata-Tipo 2 - 1 Und",null,20.5,"Mes",6960000,142680000]
["Modificación de artículo o servicio",10,"4.113-Servicios de Cross conexión y coubicación--Oro-Tipo 2 - 1 Und",null,21,"Mes",348000,7308000,null,null,"4.113-Servicios de Cross conexión y coubicación--Oro-Tipo 2 - 1 Und",null,20.5,"Mes",348000,7134000]
["Modificación de artículo o servicio",11,"5.016-Almacenamiento_ y_custodia_de_medios_magnéticos--Oro-Tipo 2 - 360 Und",null,20,"Mes",60970,1219400,null,null,"5.016-Almacenamiento_ y_custodia_de_medios_magnéticos--Oro-Tipo 2 - 360 Und",null,18,"Mes",60970,1097460]
["Modificación de artículo o servicio",12,"5.008-Monitoreo_detallado_infraestructura--Plata-Tipo 2 - 1 Métricas-Dispositivo",null,19.5,"Mes",11600,226200,null,null,"5.008-Monitoreo_detallado_infraestructura--Plata-Tipo 2 - 1 Métricas-Dispositivo",null,13,"Mes",11600,150800]
["Modificación de artículo o servicio",13,"5.178-Base_de_Datos_SQL_Server-Hosting_físico-Oro-Tipo 1 - 1 Und",null,21,"Mes",8378680,175952280,null,null,"5.178-Base_de_Datos_SQL_Server-Hosting_físico-Oro-Tipo 1 - 1 Und",null,13,"Mes",8378680,108922840]
["Modificación de artículo o servicio",14,"5.6-Windows_IIS-Hosting_físico-Oro-Tipo 1 - 1 Und",null,19,"Mes",1706824,32429656,null,null,"5.6-Windows_IIS-Hosting_físico-Oro-Tipo 1 - 1 Und",null,13,"Mes",1706824,22188712]
["Modificación de artículo o servicio",16,"1.2-KVA_Adicional_housing-Hosting_físico-Oro-Tipo 1 - 29 Und",null,21,"Mes",12306588,258438348,null,null,"1.2-KVA_Adicional_housing-Hosting_físico-Oro-Tipo 1 - 29 Und",null,20.5,"Mes",12306588,252285054]
["Modificación de artículo o servicio",19,"3.4-Almacenamiento_en_SAN_Optimizado_Base_de_Datos-Hosting_físico-Oro-Tipo 1 - 2048 GB",null,21,"Mes",950272,19955712,null,null,"3.4-Almacenamiento_en_SAN_Optimizado_Base_de_Datos-Hosting_físico-Oro-Tipo 1 - 2048 GB",null,13,"Mes",950272,12353536]
["Modificación de artículo o servicio",20,"3.2-Almacenamiento_en_SAN_Optimizado-Hosting_físico-Oro-Tipo 1 - 10240 GB",null,21,"Mes",2031206,42655326,null,null,"3.2-Almacenamiento_en_SAN_Optimizado-Hosting_físico-Oro-Tipo 1 - 10240 GB",null,13,"Mes",2031206,26405678]
["Eliminar artículo o servicio",22,"6.4-Entrega_de_copia_de_información_en_medios_o_en_disco_externo_región_1--Oro-Tipo 1 - 1 Und",null,75,"Mes",34800,2610000,null,null,"No aplica",null,"No aplica","No aplica","No aplica",0,"No aplica"]
["Modificación de artículo o servicio",27,"Windows_ IIS-Hosting_físico-Oro-Tipo1",null,10,"Mes",9144082,91440820,null,null,{"$f":"C56","v":"Windows_ IIS-Hosting_físico-Oro-Tipo1"},null,12.67,"Mes",9144082,{"$f":"M56*O56","v":115855518.94}]
["Modificación de artículo o servicio",28,"Servicios_complementarios Memoria_RAM_Adicional_físico Oro",null,10,"Mes",5767520,57675200,null,null,{"$f":"C57","v":"Servicios_complementarios Memoria_RAM_Adicional_físico Oro"},null,12.67,"Mes",5767520,{"$f":"M57*O57","v":73074478.400000006}]
["Modificación de artículo o servicio",26,"Balanceador Dedicado de Alta Capacidad",null,10,"Mes",19373108,193731080,null,null,{"$f":"C58","v":"Balanceador Dedicado de Alta Capacidad"},null,17.73,"Mes",19373108,{"$f":"M58*O58","v":343485204.84000003}]
[]
[null,null,null,null,null,null,"TOTAL",{"$f":"SUM(H40:H58)","v":1639600141},null,null,null,null,null,null,"TOTAL",{"$f":"SUM(P40:P58)","v":1593455604.1800003}]
[]
[]
[]
[]
[null,null,null,null,null,null,null,null,null,null,"Valor total del IVA en la Orden de Compra:",null,null,231539459.61000001]
[null,"Firma ordenador del gasto",null,null,null,null,"Firma de Proveedor"]
[null,null,null,null,null,null,null,null,null,null,"Valor total del AIU en la Orden de Compra:"]
["Nombre:","Andrés Felipe Stapper Segrera",null,null,null,"Nombre:"]
["Documento de Identidad:",80108439,null,null,"Documento de Identidad:",null,null,null,null,null,"Valor total gravámenes adicionales en la Orden de Compra:"]
[]
["Fecha Elaboracion:",null,null,null,null,null,null,null,null,null,"Valor total de la Orden de Compra:",null,null,1678661082.1800001]

{"sheet":"Instructivo de Diligenciamiento","index":1,"n_rows":7,"n_cols":2,"rows_kept":7,"cut":false,"hidden":false,"merged":[[6,1,77,10]]}
[]
[]
[]
[]
[]
[]
[null,"Instrucciones de diligenciamiento:\n\nColombia Compra Eficiente ha diseñado este formato para que las Entidades Compradoras puedan realizar aclaraciones, modificaciones,  cancelaciones o liquidaciones  de las Órdenes de Compra que estén en ejecución y vigentes. Para ello debe indicar:\n \n1. Datos generales: Datos básicos como número de la Orden de Compra que requiere cambiar, número consecutivo de solicitud tenga en cuenta que la primera solicitud corresponderá a la número “1”, nombre de la Entidad Compradora, nombre de la persona que solicita las acciones, NIT de la Entidad Compradora y el nombre del Proveedor que ejecuta la Orden de Compra.\n\n2. Tipo: Las Entidades pueden solicitar cuatro tipos de acciones respecto de las Órdenes de Compra:\n\n(i) Aclaraciones: Son las indicaciones de cambio de información que no afectan el plazo, el valor o las condiciones contractuales de las Órdenes de Compra como: redacción en las condiciones de entrega, errores de digitación  o rectificación de la fecha de vencimiento. Estas aclaraciones no requieren de la aceptación del Proveedor. Sin embargo una vez realizada la aclaración en la Orden de Compra, la Entidad Compradora debe notificarle al Proveedor el cambio. \n\n(ii) Modificaciones: Son indicaciones de cambio en aumento o disminución de valor o plazo,  aumento o disminución de los bienes o servicios solicitados, cambios en las condiciones de ejecución o datos que afecten la ejecución de la Orden de Compra. Solo en los casos de cambio de supervisor y datos de notificación como dirección o teléfono se puede omitir la firma del Proveedor. Sin embargo una vez realizada la modificación, la Entidad Compradora debe notificarle al Proveedor el cambio.\n\n(iii) Cancelación: Es la manifestación de la Entidad de no ejecutar la totalidad de la Orden de Compra la cual también debe ser aceptada por el Proveedor.\n\n(iv) Liquidación: Es el ajuste formal y definitivo de las obligaciones derivadas de la Orden de Compra para establecer las acreencias pendientes a favor o en contra de cada parte de la Orden de Compra, así como para aclarar la ejecución de la misma. Se efectúa, cuando aplique, dentro de los términos establecidos en cada Acuerdo Marco de Precios. Se requiere la solicitud por parte de la Entidad Compradora firmada por el Ordenador del Gasto y el representante legal del Proveedor, así como el informe del supervisor de la Orden de Compra. \n\n3. Justificación: Las razones de la realización del cambio o la cancelación de la Orden de Compra.\n\n4. Especificar las modificaciones solicitadas a la información general de la Orden de Compra o la modificación detallada de los bienes y servicios así:\n\n(i) Modificación de información general: Modificaciones a: (a) nombre del supervisor; (b) fecha de vencimiento de la Orden de Compra; (c) dirección y/o teléfono de la Entidad Compradora; o (d) Gravámenes adicionales (estampillas), en todos los campos debe diligenciar la información actual  en la Orden de Compra y los nueva información.\n\n(ii) Modificación de los artículos y/o servicios: \n\n(a) Modificaciones a los artículos o servicios: Adicionar o disminuir en cantidades un producto que fue adquirido en la Orden de Compra inicial. La Entidad debe identificar en los campos de “información actual”: (i) el número de la línea del artículo que lo puede consultar en la Orden de Compra (ii) el artículo adquirido inicialmente; (iii) las unidades de medida; (iv) las cantidades adquiridas; (v) los precios de la compra; y (vi) la información presupuestal. Para modificar o agregar nuevos artículos la Entidad Compradora debe identificar en el campo “nueva información”: (i) la cantidad final requerida; (ii) unidad de medida; (iii) precio unitario acordado previamente con el Proveedor el cual debe respetar lo dispuesto en el contrato correspondiente (precio techo, precio piso, etc.) y (iv) la información presupuestal que respalda el cambio o la inclusión.\n\n(b) Agregar nuevos artículos o servicios: Ingresar nuevos artículos que no se tenían contemplados en la Orden de Compra inicial. La Entidad Compradora debe previamente solicitarle al Proveedor el precio del artículo, el cual debe respetar lo dispuesto en el contrato correspondiente (precio techo, precio piso, etc.) y la Entidad Compradora lo debe indicar en el formato en el campo “nueva información”.\n\n(c) Eliminar artículos o servicios: Descartar artículos que la Entidad Compradora determine que no va a requerir durante la ejecución de la Orden de Compra. Para eliminar artículos la Entidad debe identificar en los campos de “información actual”: (i) el número de la línea del artículo que lo puede consultar en la Orden de Compra (ii) el artículo adquirido inicialmente; (iii) las unidades de medida; (iv) las cantidades adquiridas; (v) los precios de la compra; y (vi) la información presupuestal.\n\nEn esta sección la Entidad Compradora puede agregar tantas filas como artículos requiera modificar haciendo clic en el botón de Agregar registro o Eliminar registro.\n\n5. Consolidado de valores: Indicar en el recuadro el valor total del IVA, AUI, gravámenes adicionales y total de la Orden de Compra, estos campos serán los valores finales que quedarán en la Orden de Compra después de la modificación, tenga en cuenta que el campo de IVA no aplica para los AMP de papelería, vehículos y SOAT y que el campo de AIU solo aplica para aseo y cafetería.\n\n6. Firmas del documento: El ordenador del gasto de la Entidad Compradora debe firmar el documento y enviarlo al Proveedor para que lo acepte y firme, en caso de que así se requiera. El documento firmado debe ser enviado a través del aplicativo dispuesto por   Colombia Compra Eficiente para realizar las acciones solicitadas.\n\n7. Fecha de elaboración del documento: Corresponde a la fecha en la que la Entidad Compradora y el Proveedor llegaron a un acuerdo para realizar las acciones y se suscribe el documento, recuerde que para poder realizar modificaciones en las Órdenes de Compra las mismas se deben acordar dentro de la vigencia de la Orden de Compra. \n\nSi la Entidad Compradora requiere agregar archivos que estén relacionados con las acciones a realizar como: copia del CDP y/o aprobación de Vigencia Futura (VF) que soporta la adición, soportes documentales, correos, cartas, etc... debe publicarlos junto con el documento de solicitud de modificación suscrito en un único archivo Pdf, tenga en cuenta que Colombia Compra Eficiente únicamente realizara las modificaciones especificadas en el formato enviado por el aplicativo.\n"]

{"sheet":"Listas","index":2,"n_rows":5,"n_cols":3,"rows_kept":5,"cut":false,"hidden":true,"merged":[]}
["TipoDeModificacion",null,"Modificacion"]
["Modificación de la Orden de Compra",null,"Modificación de artículo o servicio"]
["Aclaración a la Orden de Compra",null,"Agregar nuevo artículo o servicio"]
["Cancelación de la Orden de Compra",null,"Eliminar artículo o servicio"]
["Liquidación de la Orden de Compra",null,"Ninguna"]